bitfinex/quotes_BTCUSD_20220304
["timestamp","ask_amount","ask_price","bid_price","bid_amount"]
[1646419041232,0.0489,40845.0,40841.0,2.01793263]
[1646419041429,0.06126,40846.0,40842.0,0.56866475]
[1646419041831,0.06126,40846.0,40842.0,0.67992875]
[1646419042305,0.06126,40846.0,40842.0,0.47832292]
[1646419042504,0.06126,40846.0,40842.0,0.05]
[1646419045512,0.06126,40846.0,40842.0,0.21207479]
[1646419047230,0.06126,40846.0,40841.0,2.22908182]
[1646419047831,0.06126,40846.0,40841.0,2.10655282]
[1646419048037,0.06126,40846.0,40841.0,2.09449619]
[1646419048232,0.17916594,40844.0,40841.0,2.005876]
[1646419048432,0.0489,40843.0,40841.0,2.005876]
[1646419048633,0.061284,40842.0,40841.0,2.005876]
[1646419048835,0.1346923,40842.0,40841.0,2.005876]
[1646419049235,1.11315122,40842.0,40841.0,1.63816]
[1646419049475,1.11315122,40842.0,40841.0,1.63316]
[1646419049677,1.31281503,40842.0,40841.0,1.26541]
[1646419050081,1.31281503,40842.0,40841.0,0.897648]
[1646419050681,1.31281503,40842.0,40841.0,0.529918]
[1646419051282,1.31281503,40842.0,40841.0,0.162179]
[1646419051779,0.583859,40841.0,40833.0,0.8936]
[1646419051980,0.6603,40840.0,40833.0,0.89438453]
[1646419052181,0.06129,40839.0,40833.0,0.89438453]
[1646419052377,0.0489,40838.0,40833.0,0.89438453]
[1646419052980,0.122579,40836.0,40833.0,0.8936]
[1646419053238,0.0489,40835.0,40833.0,0.8936]
[1646419053436,0.0489,40835.0,40830.0,0.00019614]
[1646419053437,0.183897,40834.0,40830.0,0.00019614]
[1646419053633,0.0489,40833.0,40830.0,0.00019614]
[1646419053833,0.061294,40832.0,40830.0,0.00019614]
[1646419054032,0.0489,40831.0,40827.0,0.001]
[1646419054232,0.0489,40831.0,40829.0,0.00119614]
[1646419055033,0.19346216,40830.0,40829.0,0.00119614]
[1646419055233,0.0489,40830.0,40829.0,0.001]
[1646419060488,0.0484558,40830.0,40829.0,0.001]
[1646419061327,0.6598558,40830.0,40829.0,0.001]
[1646419061724,0.77599963,40830.0,40829.0,0.001]
[1646419062124,0.87599963,40830.0,40829.0,0.001]
[1646419062929,1.26712552,40830.0,40829.0,0.001]
[1646419063324,0.8912858,40830.0,40829.0,0.001]
[1646419063625,0.8912858,40830.0,40824.0,0.9274]
[1646419063626,1.261314,40829.0,40824.0,0.9274]
[1646419063826,0.0489,40828.0,40827.0,0.00019615]
[1646419064024,0.16504383,40828.0,40827.0,0.00019615]
[1646419064225,0.65,40827.0,40824.0,0.002]
[1646419064477,0.0489,40826.0,40824.0,0.002]
[1646419064677,0.0489,40825.0,40824.0,0.002]
[1646419072091,0.0489,40825.0,40823.0,0.001]
[1646419072289,0.110214,40825.0,40823.0,0.001]
[1646419073489,0.6,40824.0,40820.0,0.8966]
[1646419073688,0.0489,40823.0,40820.0,0.8966]
[1646419073888,0.0489,40823.0,40819.0,0.001]
[1646419074693,0.6114,40820.0,40819.0,0.001]
[1646419074894,1.03613972,40820.0,40816.0,0.001]
[1646419075094,0.183976,40818.0,40813.0,0.5874]
[1646419075292,0.6114,40816.0,40812.0,0.002]
[1646419075491,0.0489,40815.0,40812.0,0.002]
[1646419076527,0.110224,40815.0,40812.0,0.002]
[1646419076727,0.28277401,40815.0,40812.0,0.002]
[1646419076930,0.110224,40815.0,40812.0,0.002]
[1646419078029,0.27039397,40815.0,40812.0,0.002]
[1646419078230,0.110224,40815.0,40812.0,0.063322]
[1646419079680,0.110224,40815.0,40812.0,0.002]
[1646419079681,0.210224,40815.0,40812.0,0.002]
[1646419079878,0.821624,40815.0,40812.0,0.002]
[1646419082876,0.821624,40815.0,40811.0,0.007]
[1646419083080,0.821624,40815.0,40811.0,0.00720916]
[1646419083541,0.18557317,40813.0,40811.0,0.00720916]
[1646419083746,0.0489,40812.0,40811.0,0.00720916]
[1646419083942,0.171555,40812.0,40811.0,0.00720916]
[1646419084242,0.171555,40812.0,40811.0,0.007]
[1646419084844,0.38909219,40812.0,40811.0,0.007]
[1646419085246,0.48909219,40812.0,40811.0,0.007]
[1646419086745,0.271555,40812.0,40811.0,0.007]
[1646419087178,0.171555,40812.0,40811.0,0.007]
[1646419087377,0.271555,40812.0,40811.0,0.007]
[1646419087779,0.171555,40812.0,40811.0,0.007]
[1646419087981,0.0489,40812.0,40811.0,0.007]
[1646419088377,0.0489,40812.0,40811.0,0.38283972]
[1646419090379,0.0489,40812.0,40811.0,0.007]
[1646419091539,0.003,40815.0,40814.0,0.21532774]
[1646419091733,0.0489,40832.0,40815.0,1.35]
[1646419091935,0.0489,40832.0,40824.0,0.09907073]
[1646419092133,0.0489,40832.0,40825.0,0.37583972]
[1646419092331,0.0489,40832.0,40826.0,0.08862019]
[1646419093332,0.0489,40832.0,40826.0,0.14990919]
[1646419093532,0.061286,40830.0,40829.0,0.25445971]
[1646419093733,0.061286,40830.0,40829.0,0.0138745]
[1646419096478,0.061286,40830.0,40829.0,0.38707146]
[1646419096678,0.122575,40833.0,40829.0,0.38707146]
[1646419096879,0.122575,40833.0,40832.0,0.15641303]
[1646419097081,0.06149175,40834.0,40830.0,0.061282]
[1646419097282,0.122563,40838.0,40832.0,0.08862019]
[1646419097482,0.122563,40838.0,40834.0,0.21532774]
[1646419097687,0.003,40839.0,40837.0,0.08862019]
[1646419097883,0.003,40839.0,40838.0,0.37319696]
[1646419098083,0.003,40839.0,40837.0,0.16375286]
[1646419098532,0.061272,40840.0,40837.0,0.16375286]
[1646419098730,0.06148174,40840.0,40837.0,0.16375286]
[1646419098931,0.06148174,40840.0,40838.0,0.37319696]
[1646419099234,0.06148174,40840.0,40839.0,0.2106459]
[1646419099431,0.06148174,40840.0,40838.0,0.37319696]
[1646419099832,0.061272,40840.0,40838.0,0.37319696]
[1646419103379,0.061272,40840.0,40837.0,0.22502611]
[1646419103580,0.061272,40840.0,40837.0,0.10247886]
[1646419105180,0.061272,40840.0,40837.0,0.01385867]
[1646419105580,0.15422966,40839.0,40834.0,0.46181715]
[1646419105830,0.122571,40838.0,40834.0,0.08862019]
[1646419106332,0.122571,40838.0,40834.0,0.14990319]
[1646419107135,0.12278074,40838.0,40834.0,0.14990319]
[1646419108134,0.122571,40838.0,40834.0,0.08862019]
[1646419108534,0.12278074,40838.0,40834.0,0.08862019]
[1646419108934,0.12278074,40838.0,40832.0,0.01096881]
[1646419109138,0.0489,40837.0,40832.0,0.01096881]
[1646419109779,0.04910975,40837.0,40832.0,0.01096881]
[1646419110583,0.0489,40837.0,40832.0,0.01096881]
[1646419110777,0.04910975,40837.0,40832.0,0.01096881]
[1646419111780,0.0489,40837.0,40832.0,0.01096881]
[1646419111979,0.04910975,40837.0,40832.0,0.01096881]
[1646419112278,0.04910975,40837.0,40834.0,0.08862019]
[1646419112478,0.061285,40836.0,40834.0,0.08862019]
[1646419112680,0.0489,40835.0,40834.0,0.14990719]
[1646419113082,0.0489,40835.0,40834.0,0.52310415]
[1646419113533,0.00420975,40837.0,40834.0,0.52310415]
[1646419114228,0.004,40837.0,40834.0,0.52310415]
[1646419114428,0.06128,40836.0,40834.0,0.52310415]
[1646419114628,0.06128,40836.0,40835.0,0.37319696]
[1646419115229,0.06128,40836.0,40835.0,0.37308084]
[1646419117392,0.06128,40836.0,40835.0,0.35808084]
[1646419117593,0.06128,40836.0,40834.0,0.27245888]
[1646419117794,0.06128,40836.0,40834.0,0.14990719]
[1646419118297,0.06128,40836.0,40834.0,0.19990719]
[1646419118697,0.00020974,40837.0,40835.0,0.64512934]
[1646419118895,0.00020974,40837.0,40836.0,0.38291181]
[1646419119095,0.061275,40840.0,40836.0,0.38291181]
[1646419119297,0.00020974,40838.0,40836.0,0.49418381]
[1646419119595,0.00020974,40838.0,40837.0,0.08862019]
[1646419119795,0.00020974,40838.0,40837.0,0.77560901]
[1646419120296,0.061275,40840.0,40837.0,0.84282785]
[1646419120496,0.06148474,40840.0,40837.0,0.84282785]
[1646419120738,0.06148474,40840.0,40837.0,0.77560901]
[1646419121333,0.061275,40840.0,40837.0,0.77560901]
[1646419122333,0.061275,40840.0,40837.0,0.82560901]
[1646419122936,0.1,40846.0,40837.0,0.82560901]
[1646419122937,0.00020973,40841.0,40837.0,0.82560901]
[1646419123233,0.00020973,40841.0,40839.0,0.1837867]
[1646419123459,0.00020973,40841.0,40840.0,0.46010545]
[1646419123833,0.005,40847.0,40840.0,0.46010545]
[1646419124034,0.00020973,40843.0,40841.0,0.061263]
[1646419124237,0.00020973,40843.0,40842.0,1.01894167]
[1646419124490,0.005,40847.0,40842.0,1.01894167]
[1646419124491,0.005,40847.0,40845.0,0.21532774]
[1646419124686,0.11566143,40857.0,40851.0,0.20363258]
[1646419124887,0.11566143,40858.0,40852.0,0.43273526]
[1646419125087,0.11566143,40858.0,40855.0,0.25362535]
[1646419125285,0.0489,40861.0,40852.0,0.44215141]
[1646419125485,0.171395,40861.0,40854.0,0.23990404]
[1646419125686,0.171395,40861.0,40855.0,0.37148526]
[1646419125687,0.122495,40861.0,40855.0,0.37148526]
[1646419125890,0.004,40863.0,40860.0,0.14985819]
[1646419126193,0.004,40863.0,40861.0,0.37148526]
[1646419126389,0.004,40863.0,40862.0,0.25246159]
[1646419126585,0.0378709,40866.0,40862.0,0.62394685]
[1646419126586,0.00020966,40864.0,40862.0,0.62394685]
[1646419126788,0.00020966,40864.0,40863.0,0.46010545]
[1646419126994,0.00083852,40870.0,40864.0,1.35]
[1646419127190,0.00083852,40870.0,40864.0,1.36092744]
[1646419127388,0.00083852,40870.0,40869.0,0.08862019]
[1646419127389,0.006,40870.0,40869.0,0.08862019]
[1646419127688,0.006,40870.0,40869.0,0.52399047]
[1646419128835,0.001,40871.0,40869.0,0.52399047]
[1646419129033,0.001,40871.0,40870.0,0.37148526]
[1646419131739,0.001,40871.0,40869.0,0.2749517]
[1646419132584,0.001,40871.0,40869.0,0.01388502]
[1646419132783,0.0489,40870.0,40869.0,0.01388502]
[1646419132982,0.04862942,40870.0,40869.0,0.01388502]
[1646419133183,0.47011468,40870.0,40869.0,0.01388502]
[1646419133385,0.48383923,40870.0,40861.0,0.01091728]
[1646419133584,0.061247,40867.0,40861.0,0.01091728]
[1646419133782,0.42038526,40866.0,40861.0,0.01091728]
[1646419133981,0.47038526,40866.0,40861.0,0.01091728]
[1646419134185,0.1,40865.0,40861.0,0.01091728]
[1646419134384,0.0489,40864.0,40861.0,0.07216542]
[1646419134983,0.061247,40863.0,40861.0,0.07216542]
[1646419135184,0.0489,40862.0,40861.0,0.07216542]
[1646419135387,0.0489,40862.0,40861.0,0.06124814]
[1646419138454,0.42038526,40862.0,40856.0,1.8202]
[1646419138654,0.6114,40860.0,40856.0,1.8202]
[1646419138852,0.061258,40858.0,40856.0,1.8202]
[1646419139051,0.0489,40857.0,40855.0,0.12250138]
[1646419139254,0.171419,40857.0,40855.0,0.12250138]
[1646419140886,0.0439,40857.0,40855.0,0.12250138]
[1646419143229,0.0439,40857.0,40855.0,0.32600951]
[1646419143430,0.0439,40857.0,40855.0,0.12250138]
[1646419144235,0.0439,40857.0,40856.0,0.13862019]
[1646419144931,0.0439,40857.0,40856.0,0.31310482]
[1646419145332,0.00083709,40865.0,40858.0,0.06123599]
[1646419145333,0.0489,40862.0,40858.0,0.06123599]
[1646419145531,0.0489,40862.0,40859.0,0.122472]
[1646419145733,0.0489,40862.0,40860.0,0.00916623]
[1646419146331,0.0489,40862.0,40860.0,0.05916623]
[1646419147401,0.110144,40862.0,40860.0,0.05916623]
[1646419150300,0.004,40867.0,40861.0,0.08862019]
[1646419150502,0.01256591,40873.0,40867.0,1.35]
[1646419150503,0.00083692,40869.0,40867.0,1.35]
[1646419150735,0.00083692,40869.0,40867.0,1.53502236]
[1646419150942,0.00083692,40869.0,40868.0,0.21532774]
[1646419151136,0.00083692,40869.0,40868.0,0.65606993]
[1646419151534,0.001,40871.0,40868.0,0.93163751]
[1646419151734,0.00120924,40871.0,40870.0,0.13862019]
[1646419152740,0.001,40871.0,40870.0,0.13862019]
[1646419152937,0.01277514,40873.0,40871.0,1.35]
[1646419153137,0.01277514,40873.0,40872.0,0.21532774]
[1646419153337,0.01277514,40873.0,40872.0,0.26532774]
[1646419153744,0.01277514,40873.0,40872.0,0.05]
[1646419153938,0.01256591,40873.0,40871.0,0.11121558]
[1646419155685,0.13502891,40873.0,40871.0,0.06121558]
[1646419155887,0.13502891,40873.0,40863.0,0.2426]
[1646419155888,0.0489,40872.0,40863.0,0.2426]
[1646419156083,0.0489,40872.0,40864.0,0.0612443]
[1646419156283,0.02449659,40868.0,40864.0,0.0612443]
[1646419156483,0.01256591,40873.0,40864.0,0.0612443]
[1646419156484,0.0245014,40865.0,40864.0,0.14986449]
[1646419156682,0.0489,40865.0,40864.0,0.39008864]
[1646419156882,0.0489,40865.0,40864.0,0.0612443]
[1646419159038,0.0489,40865.0,40864.0,0.34698024]
[1646419159238,0.0489,40865.0,40864.0,0.43560043]
[1646419161140,0.110127,40870.0,40864.0,0.43560043]
[1646419161343,0.00020925,40867.0,40864.0,0.34698024]
[1646419161543,0.00020925,40867.0,40866.0,0.08862019]
[1646419161737,0.00020925,40867.0,40866.0,0.13862019]
[1646419162384,0.0489,40870.0,40866.0,0.13862019]
[1646419162586,0.00020924,40869.0,40866.0,0.05]
[1646419163191,0.00020924,40869.0,40867.0,0.061225]
[1646419163385,0.00020924,40869.0,40868.0,0.08862019]
[1646419163685,0.0489,40870.0,40868.0,0.13862019]
[1646419165085,0.0489,40870.0,40868.0,0.13362019]
[1646419167630,0.0489,40870.0,40868.0,0.045]
[1646419167830,0.0489,40870.0,40867.0,0.23367022]
[1646419172084,0.0489,40870.0,40868.0,0.01304192]
[1646419173235,0.05011581,40870.0,40868.0,0.01304192]
[1646419178502,0.22686147,40870.0,40868.0,0.01304192]
[1646419178701,0.05011581,40870.0,40868.0,0.01304192]
[1646419179799,0.21651171,40870.0,40868.0,0.01304192]
[1646419179999,0.05011581,40870.0,40868.0,0.01304192]
[1646419181043,0.1835616,40869.0,40868.0,0.01304192]
[1646419181239,0.0489,40869.0,40868.0,0.01304192]
[1646419182442,0.0489,40869.0,40868.0,0.11294192]
[1646419183043,0.0489,40869.0,40868.0,0.01304192]
[1646419183244,0.00121581,40870.0,40868.0,0.01304192]
[1646419183645,0.00121581,40870.0,40868.0,0.18111738]
[1646419184047,0.00121581,40870.0,40868.0,0.01304192]
[1646419184687,0.00020923,40871.0,40868.0,0.01304192]
[1646419184988,0.00020923,40871.0,40868.0,0.10166211]
[1646419185186,0.110122,40874.0,40870.0,0.20453484]
[1646419185385,0.110122,40874.0,40872.0,0.06122]
[1646419185586,0.110122,40874.0,40872.0,0.12243924]
[1646419185887,0.110122,40874.0,40873.0,0.01290007]
[1646419186486,0.105122,40874.0,40873.0,0.01290007]
[1646419194388,0.29691097,40874.0,40873.0,0.01290007]
[1646419195590,0.105122,40874.0,40873.0,0.01290007]
[1646419195837,0.29690974,40874.0,40873.0,0.01290007]
[1646419196738,0.105122,40874.0,40873.0,0.01290007]
[1646419197137,0.29691109,40874.0,40873.0,0.01290007]
[1646419197335,0.29691109,40874.0,40873.0,0.00790007]
[1646419197737,0.29818335,40874.0,40873.0,0.00790007]
[1646419199138,0.10639426,40874.0,40873.0,0.00790007]
[1646419199341,0.29818264,40874.0,40873.0,0.00790007]
[1646419200388,0.10639426,40874.0,40873.0,0.00790007]
[1646419200788,0.10639426,40874.0,40860.0,1.26526023]
[1646419200789,1.44881953,40874.0,40860.0,1.26526023]
[1646419200994,0.6114,40861.0,40850.0,0.73]
[1646419201290,0.79101525,40855.0,40850.0,0.73]
[1646419201489,0.0489,40854.0,40853.0,0.06126111]
[1646419201690,0.0489,40854.0,40850.0,0.5]
[1646419201891,0.0489,40854.0,40848.0,0.9123]
[1646419202091,0.1489,40854.0,40848.0,0.9123]
[1646419202489,0.21435198,40854.0,40848.0,0.9123]
[1646419202690,0.1489,40854.0,40848.0,0.9123]
[1646419202889,0.21435198,40854.0,40849.0,0.24576818]
[1646419203090,0.1489,40854.0,40848.0,0.9123]
[1646419203347,0.63869828,40854.0,40846.0,0.12253328]
[1646419203551,0.6114,40851.0,40846.0,0.12253328]
[1646419203745,0.0489,40850.0,40846.0,0.12253328]
[1646419203943,0.6114,40848.0,40846.0,0.12253328]
[1646419204144,0.0489,40847.0,40846.0,0.12253328]
[1646419204344,0.061275,40846.0,40842.0,0.5895442]
[1646419204548,0.0489,40845.0,40842.0,0.06127637]
[1646419205150,0.6114,40843.0,40841.0,0.9607]
[1646419205347,0.0489,40842.0,40840.0,0.9033]
[1646419205546,0.110184,40842.0,40837.0,0.08862019]
[1646419205745,0.110184,40842.0,40837.0,0.05901766]
[1646419206346,0.110184,40842.0,40838.0,0.29384492]
[1646419206548,0.110184,40842.0,40838.0,0.34384492]
[1646419206987,0.110184,40842.0,40838.0,0.3440694]
[1646419207194,0.110184,40842.0,40838.0,0.40308706]
[1646419207389,0.110184,40842.0,40838.0,0.17052498]
[1646419207991,0.110184,40842.0,40838.0,0.1703005]
[1646419208191,0.110184,40842.0,40838.0,0.11150732]
[1646419208390,0.6114,40841.0,40839.0,0.05]
[1646419208590,0.0489,40840.0,40838.0,0.06150732]
[1646419208791,0.0489,40840.0,40839.0,0.05]
[1646419211632,0.0439,40840.0,40839.0,0.26355645]
[1646419212635,0.0439,40840.0,40839.0,0.05]
[1646419212932,0.04515007,40840.0,40839.0,0.05]
[1646419213734,0.04515007,40840.0,40839.0,0.32074469]
[1646419213933,0.04515007,40840.0,40839.0,0.05]
[1646419214991,0.40671877,40840.0,40837.0,0.0002153]
[1646419215197,0.40671877,40840.0,40832.0,0.9044]
[1646419215198,0.061291,40837.0,40832.0,0.9044]
[1646419215392,0.6114,40835.0,40832.0,0.9044]
[1646419215591,0.0489,40834.0,40832.0,0.0011]
[1646419215994,0.0489,40834.0,40831.0,0.002]
[1646419215995,0.75,40832.0,40831.0,0.002]
[1646419216390,0.7989,40832.0,40831.0,0.002]
[1646419216589,0.0489,40832.0,40831.0,0.002]
[1646419218649,0.0439,40832.0,40831.0,0.002]
[1646419220550,0.04362942,40832.0,40831.0,0.002]
[1646419220751,1.13642768,40832.0,40831.0,0.002]
[1646419220955,0.86293603,40832.0,40831.0,0.002]
[1646419221158,1.2,40831.0,40828.0,0.0031]
[1646419221350,0.71239078,40829.0,40828.0,0.0031]
[1646419221553,0.76129078,40829.0,40828.0,0.0031]
[1646419221851,0.76129078,40829.0,40824.0,0.001]
[1646419221852,1.26131,40828.0,40824.0,0.001]
[1646419222090,0.6603,40827.0,40824.0,0.001]
[1646419222292,0.8,40826.0,40824.0,0.001]
[1646419222489,0.6603,40825.0,40824.0,0.001]
[1646419222692,0.6603,40825.0,40824.0,0.00121514]
[1646419223592,0.6603,40825.0,40824.0,0.001]
[1646419223892,0.6603,40825.0,40824.0,0.17238707]
[1646419224093,0.6603,40825.0,40824.0,0.001]
[1646419225496,0.6603,40825.0,40824.0,0.06001766]
[1646419225748,0.6603,40825.0,40824.0,0.001]
[1646419226147,0.6603,40825.0,40824.0,0.06001766]
[1646419226352,0.12762,40829.0,40824.0,0.90634614]
[1646419226353,0.005,40829.0,40824.0,0.90634614]
[1646419226549,0.005,40829.0,40828.0,0.2743454]
[1646419226747,0.005,40829.0,40828.0,0.3243454]
[1646419226946,0.00142335,40832.0,40829.0,1.35]
[1646419227147,0.00142335,40832.0,40831.0,0.2743454]
[1646419227349,0.00142335,40832.0,40831.0,0.63368088]
[1646419227546,0.0015961,40833.0,40832.0,0.05]
[1646419227746,0.003,40835.0,40833.0,0.12254997]
[1646419227952,0.059273,40838.0,40834.0,0.57994496]
[1646419228147,0.059273,40838.0,40834.0,0.75250118]
[1646419228345,0.059273,40838.0,40834.0,0.81151884]
[1646419228546,0.059273,40838.0,40837.0,0.2734661]
[1646419228746,0.059273,40838.0,40837.0,0.3234661]
[1646419230689,0.059273,40838.0,40837.0,0.76026703]
[1646419230890,0.059273,40838.0,40837.0,0.68808332]
[1646419233559,0.059273,40838.0,40837.0,0.74710098]
[1646419233560,0.057143,40838.0,40837.0,0.74710098]
[1646419233759,0.0036938,40839.0,40837.0,0.74710098]
[1646419233960,0.00155927,40839.0,40838.0,0.36461722]
[1646419234158,0.005,40843.0,40839.0,0.02445]
[1646419234361,0.005,40843.0,40842.0,0.05901766]
[1646419234559,0.005,40843.0,40842.0,0.42363488]
[1646419234860,0.005,40843.0,40842.0,0.47363488]
[1646419235058,0.061263,40845.0,40842.0,0.47363488]
[1646419235662,0.061263,40845.0,40843.0,0.12253318]
[1646419236259,0.061263,40845.0,40844.0,0.27470239]
[1646419236459,0.061263,40845.0,40844.0,0.05]
[1646419236659,0.061263,40845.0,40843.0,0.23380218]
[1646419237491,0.061263,40845.0,40844.0,0.22532171]
[1646419238092,0.061263,40845.0,40843.0,0.23380218]
[1646419239093,0.061263,40845.0,40843.0,0.47742602]
[1646419239294,0.061263,40845.0,40843.0,0.23380218]
[1646419239699,0.061263,40845.0,40843.0,0.17253318]
[1646419240200,0.061263,40845.0,40843.0,0.05]
[1646419240495,0.061263,40845.0,40842.0,0.00122957]
[1646419240496,0.22551468,40845.0,40842.0,0.00122957]
[1646419241048,0.061263,40845.0,40842.0,0.00122957]
[1646419241244,0.061263,40845.0,40842.0,0.12377625]
[1646419241447,0.061263,40845.0,40842.0,0.17377625]
[1646419242446,0.061263,40845.0,40843.0,0.061274]
[1646419243046,0.122534,40846.0,40844.0,0.00205155]
[1646419243848,0.122534,40846.0,40844.0,0.06332477]
[1646419244687,0.061265,40846.0,40844.0,0.06332477]
[1646419245089,0.061265,40846.0,40844.0,0.11332477]
[1646419245390,0.061265,40846.0,40844.0,0.06332477]
[1646419248091,0.06615511,40846.0,40844.0,0.06332477]
[1646419249936,0.0489,40845.0,40844.0,0.06332477]
[1646419250338,0.0439,40845.0,40844.0,0.06332477]
[1646419250936,0.0439,40845.0,40844.0,0.00205155]
[1646419251540,0.0684083,40845.0,40844.0,0.00205155]
[1646419252190,0.0245083,40845.0,40844.0,0.00205155]
[1646419252991,0.02591496,40845.0,40844.0,0.00132861]
[1646419253692,0.07481496,40845.0,40844.0,0.00132861]
[1646419253895,0.6,40844.0,40840.0,0.06128241]
[1646419254097,0.0245083,40841.0,40840.0,0.06128241]
[1646419254294,0.0489,40841.0,40840.0,0.06128241]
[1646419255294,0.0489,40841.0,40838.0,0.9158]
[1646419255295,0.43803574,40841.0,40838.0,0.9158]
[1646419255594,0.41351722,40841.0,40837.0,0.12256319]
[1646419255842,0.1,40840.0,40836.0,0.061292]
[1646419256043,0.0489,40839.0,40836.0,0.061292]
[1646419256242,0.061293,40838.0,40836.0,0.061292]
[1646419256443,0.0489,40837.0,40836.0,0.061292]
[1646419257242,0.0489,40837.0,40836.0,0.111292]
[1646419258045,0.0489,40837.0,40836.0,0.45746064]
[1646419258442,0.0029284,40841.0,40836.0,0.45746064]
[1646419258443,0.0029284,40841.0,40837.0,1.35]
[1646419258645,0.0489,40840.0,40839.0,0.05901766]
[1646419259042,0.0029284,40841.0,40840.0,0.95]
[1646419259998,0.0029284,40841.0,40839.0,0.49731947]
[1646419260201,0.0029284,40841.0,40840.0,0.05975022]
[1646419260404,0.105,40847.0,40840.0,0.59851075]
[1646419260405,0.005,40847.0,40840.0,0.59851075]
[1646419260703,0.005,40847.0,40845.0,0.05901766]
[1646419260901,0.061258,40848.0,40845.0,0.05901766]
[1646419262401,0.061258,40848.0,40845.0,0.06125717]
[1646419263442,0.061258,40848.0,40846.0,0.21062317]
[1646419264045,0.061258,40848.0,40845.0,0.06125717]
[1646419265244,0.061258,40848.0,40844.0,0.18377133]
[1646419265846,0.0489,40847.0,40844.0,0.18377133]
[1646419266246,0.0489,40847.0,40844.0,0.12251433]
[1646419267117,0.0439,40847.0,40844.0,0.12251433]
[1646419267512,0.0439,40847.0,40845.0,0.05]
[1646419268619,0.0439,40847.0,40844.0,0.12251433]
[1646419270757,0.0439,40847.0,40837.0,0.00083444]
[1646419270758,0.061292,40843.0,40837.0,0.00083444]
[1646419270954,0.6114,40840.0,40837.0,0.00083444]
[1646419271153,0.0489,40839.0,40837.0,0.00083444]
[1646419271452,0.0489,40839.0,40837.0,0.00031834]
[1646419271453,0.1489,40839.0,40837.0,0.00031834]
[1646419271648,0.1489,40839.0,40836.0,0.122579]
[1646419271849,0.1898448,40837.0,40836.0,0.122579]
[1646419272050,0.0489,40837.0,40836.0,0.122579]
[1646419272251,0.0489,40837.0,40836.0,0.172579]
[1646419272450,0.0489,40837.0,40835.0,0.00012459]
[1646419272755,0.3582869,40836.0,40835.0,0.00012459]
[1646419272951,0.3582869,40836.0,40830.0,0.06129809]
[1646419272952,0.4071869,40836.0,40830.0,0.06129809]
[1646419273151,0.161297,40835.0,40833.0,0.0001246]
[1646419273351,0.0489,40834.0,40833.0,0.0001246]
[1646419273552,0.7,40833.0,40832.0,0.061299]
[1646419273751,1.032797,40833.0,40832.0,0.061299]
[1646419273952,1.3910839,40833.0,40831.0,0.061299]
[1646419274155,0.1,40832.0,40831.0,0.061299]
[1646419274351,0.26446423,40832.0,40831.0,0.061299]
[1646419274797,0.26446423,40832.0,40823.0,0.23388353]
[1646419274798,1.23415113,40832.0,40824.0,0.123606]
[1646419274996,1.23415113,40832.0,40824.0,0.001]
[1646419274997,0.6114,40829.0,40824.0,0.001]
[1646419275193,0.6114,40826.0,40824.0,0.001]
[1646419275393,0.0489,40825.0,40823.0,0.0021]
[1646419275594,0.6114,40824.0,40823.0,0.00223935]
[1646419275792,0.6114,40824.0,40822.0,0.411]
[1646419275793,0.85,40823.0,40822.0,0.04532835]
[1646419275996,0.85,40823.0,40822.0,0.001]
[1646419275997,0.9989,40823.0,40822.0,0.001]
[1646419276193,1.6103,40823.0,40822.0,0.001]
[1646419276392,1.6103,40823.0,40818.0,0.05125382]
[1646419276692,1.6103,40823.0,40820.0,0.06131295]
[1646419276693,0.6114,40821.0,40820.0,0.06131295]
[1646419276892,0.6603,40821.0,40820.0,0.06131295]
[1646419277093,0.7603,40821.0,40820.0,0.12262995]
[1646419278743,0.7603,40821.0,40820.0,0.061317]
[1646419278944,1.18058692,40821.0,40819.0,0.122626]
[1646419279149,1.18058692,40821.0,40817.0,0.001]
[1646419279150,1.07036292,40820.0,40817.0,0.001]
[1646419279346,1.07036292,40820.0,40814.0,0.0041]
[1646419279347,0.6114,40818.0,40814.0,0.0041]
[1646419279545,1.01926292,40817.0,40814.0,0.0041]
[1646419279745,0.1,40816.0,40814.0,0.0041]
[1646419279947,0.122655,40814.0,40812.0,0.062331]
[1646419280152,0.40786292,40813.0,40812.0,0.062331]
[1646419280346,0.1489,40813.0,40812.0,0.062331]
[1646419281149,0.24993414,40813.0,40812.0,0.062331]
[1646419281549,0.14993414,40813.0,40812.0,0.062331]
[1646419281851,0.24993414,40813.0,40812.0,0.062331]
[1646419282700,0.14993414,40813.0,40812.0,0.35007924]
[1646419282895,0.24993414,40813.0,40812.0,0.35007924]
[1646419283094,0.24993414,40813.0,40812.0,0.062331]
[1646419284096,0.14993414,40813.0,40812.0,0.33948169]
[1646419284297,0.24993414,40813.0,40812.0,0.33948169]
[1646419284497,0.14993414,40813.0,40812.0,0.33948169]
[1646419284896,0.14993414,40813.0,40812.0,0.062331]
[1646419285095,0.15009939,40813.0,40812.0,0.062331]
[1646419285751,0.15009939,40813.0,40812.0,0.46112633]
[1646419285752,0.04906525,40813.0,40812.0,0.46112633]
[1646419285949,0.04906525,40813.0,40812.0,0.89161003]
[1646419286149,0.04906525,40813.0,40812.0,0.93896]
[1646419286748,0.04906525,40813.0,40812.0,0.93396]
[1646419286957,0.00263,40815.0,40813.0,1.4]
[1646419287152,0.00137866,40817.0,40814.0,0.41206845]
[1646419287351,0.00137866,40817.0,40816.0,0.05901766]
[1646419287552,0.00137866,40817.0,40816.0,0.41798058]
[1646419287751,0.00137866,40817.0,40816.0,0.51798058]
[1646419288150,0.02922,40819.0,40816.0,0.51798058]
[1646419288351,0.02922,40819.0,40816.0,0.59060558]
[1646419288752,0.061305,40818.0,40816.0,0.59060558]
[1646419289354,0.061305,40818.0,40816.0,0.23164266]
[1646419292412,0.0489,40817.0,40816.0,0.23164266]
[1646419293009,0.0489,40817.0,40816.0,0.73164266]
[1646419293253,0.05035496,40817.0,40816.0,0.68164266]
[1646419293652,0.40931788,40817.0,40816.0,0.615125]
[1646419293851,0.40931788,40817.0,40814.0,0.00019515]
[1646419293852,1.36564512,40816.0,40814.0,0.00019515]
[1646419294053,1.36564512,40816.0,40808.0,0.00178071]